bitfinex/quotes_SOLUSD_20250414
["timestamp","ask_amount","ask_price","bid_price","bid_amount"]
[1744620584829,32.0079,133.16,133.11,7.8955]
[1744620585138,32.0079,133.16,133.11,1.6859]
[1744620586970,7.18,133.15,133.11,1.6859]
[1744620588146,7.18,133.15,133.11,90.2958]
[1744620590178,13.1883,133.15,133.11,84.2858]
[1744620593854,13.1883,133.15,133.11,90.2958]
[1744620594665,13.1883,133.15,133.11,1.6859]
[1744620597253,7.18,133.15,133.11,1.6859]
[1744620597446,13.1883,133.15,133.11,1.6859]
[1744620599360,7.18,133.15,133.11,7.6958]
[1744620600836,13.1882,133.15,133.11,1.6859]
[1744620601761,13.1882,133.15,133.11,0.063]
[1744620602340,18.64964886,133.14,133.11,0.063]
[1744620603468,13.1882,133.15,133.11,0.063]
[1744620605560,7.18,133.15,133.11,0.063]
[1744620605955,6.0078,133.16,133.11,0.063]
[1744620607460,6.0073,133.17,133.11,0.063]
[1744620607643,39.67524886,133.17,133.11,0.063]
[1744620608266,24.65694886,133.17,133.11,0.063]
[1744620609376,26.0,133.18,133.11,0.34732314]
[1744620609553,7.02,133.19,133.11,83.08938471]
[1744620609752,7.02,133.19,133.13,0.42648471]
[1744620609958,6.0057,133.21,133.13,0.42648471]
[1744620610863,6.0057,133.21,133.14,6.0087]
[1744620611070,6.0057,133.21,133.14,88.6086]
[1744620612047,0.03,133.22,133.16,6.0078]
[1744620612458,6.0352,133.22,133.16,6.0078]
[1744620613781,6.0352,133.22,133.15,6.29252314]
[1744620615151,24.65554886,133.21,133.14,88.6084]
[1744620617278,0.14216157,133.2,133.12,7.6751]
[1744620617574,18.79181043,133.15,133.11,0.063]
[1744620617776,18.64964886,133.13,133.11,0.063]
[1744620618857,6.0096,133.12,133.11,0.063]
[1744620619561,24.65924886,133.12,133.11,0.063]
[1744620619876,6.0096,133.12,133.11,0.063]
[1744620620079,6.0092,133.13,133.11,0.063]
[1744620620770,24.65884886,133.13,133.11,0.063]
[1744620621880,6.0092,133.13,133.11,0.063]
[1744620624177,24.65884886,133.13,133.11,0.063]
[1744620625889,18.79181043,133.12,133.11,0.063]
[1744620626179,18.79181043,133.12,133.1,0.063]
[1744620626381,18.64964886,133.12,133.1,0.063]
[1744620626588,24.65884886,133.13,133.1,0.063]
[1744620626960,6.0082,133.15,133.1,0.063]
[1744620627178,7.02,133.14,133.1,0.063]
[1744620627788,13.029,133.14,133.1,0.063]
[1744620627967,7.02,133.14,133.1,0.063]
[1744620629258,241.24,133.19,133.11,19.07613357]
[1744620629498,7.0,133.19,133.13,6.5713]
[1744620629856,13.0064,133.19,133.13,6.5713]
[1744620630987,13.0064,133.19,133.14,6.0087]
[1744620632985,7.0,133.19,133.14,6.0087]
[1744620634487,7.0,133.19,133.14,88.6086]
[1744620636378,7.0,133.19,133.15,0.28432314]
[1744620636579,0.03,133.21,133.15,0.28432314]
[1744620637591,6.0355,133.21,133.15,0.28432314]
[1744620638386,0.03,133.21,133.16,6.0078]
[1744620639074,0.03,133.21,133.14,82.5999]
[1744620640296,0.03,133.21,133.16,6.0078]
[1744620641184,0.03,133.21,133.15,6.0081]
[1744620645991,0.03,133.21,133.15,88.608]
[1744620646391,6.006,133.2,133.15,82.5999]
[1744620648596,6.0355,133.21,133.15,82.5999]
[1744620652105,18.64964886,133.2,133.15,82.5999]
[1744620653312,6.0064,133.19,133.15,82.5999]
[1744620655012,0.03,133.21,133.15,82.5999]
[1744620655319,0.03,133.21,133.19,6.5634]
[1744620655504,0.03,133.21,133.19,89.1633]
[1744620656816,0.03,133.21,133.19,95.1697]
[1744620657013,0.03,133.21,133.2,0.28432314]
[1744620657932,0.03,133.21,133.19,89.1633]
[1744620658109,0.03,133.21,133.19,82.5999]
[1744620658824,0.03,133.21,133.19,88.6063]
[1744620659731,0.03,133.21,133.19,82.5999]
[1744620660117,0.03,133.21,133.18,82.5999]
[1744620661229,0.03,133.21,133.18,88.6067]
[1744620662029,0.03,133.21,133.19,0.28432314]
[1744620662230,0.03,133.21,133.19,101.67603357]
[1744620663020,0.03,133.22,133.21,20.491072]
[1744620663221,0.03,133.22,133.21,1.84142314]
[1744620664029,0.03,133.22,133.21,84.44132314]
[1744620664334,0.03,133.22,133.21,90.44682314]
[1744620665919,0.03,133.22,133.21,82.5999]
[1744620667638,0.03,133.22,133.18,6.0066]
[1744620669237,0.03,133.22,133.17,1.562]
[1744620670036,18.67964886,133.22,133.16,82.5999]
[1744620670628,0.14216157,133.21,133.13,82.5999]
[1744620671027,18.67964886,133.22,133.14,6.0086]
[1744620671228,0.03,133.22,133.17,0.28432314]
[1744620671422,0.03,133.22,133.17,82.88422314]
[1744620672341,0.03,133.22,133.17,82.5999]
[1744620673017,26.0,133.19,133.13,82.5999]
[1744620673216,26.0,133.19,133.1,0.063]
[1744620673217,18.64964886,133.15,133.1,0.063]
[1744620673622,6.0078,133.16,133.1,0.063]
[1744620673828,6.0078,133.16,133.1,6.0733]
[1744620674543,6.0078,133.16,133.1,0.063]
[1744620675031,6.0078,133.16,133.1,6.0732]
[1744620675352,20.27694886,133.15,133.1,0.063]
[1744620675841,6.0074,133.17,133.1,82.6629]
[1744620676024,12.987,133.18,133.11,0.28432314]
[1744620676924,1.6573,133.22,133.14,26.28432314]
[1744620677128,7.01,133.22,133.14,108.88422314]
[1744620677344,13.0152,133.22,133.15,6.0082]
[1744620678050,18.64964886,133.21,133.14,88.6084]
[1744620678342,18.64964886,133.21,133.14,82.5999]
[1744620678941,18.64964886,133.17,133.1,0.063]
[1744620679134,25.62964886,133.17,133.1,0.063]
[1744620679728,12.9876,133.17,133.1,6.35762314]
[1744620682446,18.64964886,133.16,133.1,82.6629]
[1744620683532,6.0082,133.15,133.1,88.6732]
[1744620684454,6.0082,133.15,133.1,82.6629]
[1744620685848,6.0079,133.16,133.1,88.6732]
[1744620686221,0.14216157,133.15,133.1,82.6629]
[1744620686458,18.79181043,133.15,133.1,0.063]
[1744620686653,24.95354886,133.11,133.1,0.063]
[1744620687548,25.09571043,133.11,133.1,0.063]
[1744620687849,18.64964886,133.09,133.08,0.063]
[1744620688049,18.79181043,133.09,133.08,0.063]
[1744620691060,33.36911043,133.09,133.08,0.063]
[1744620692653,33.36911043,133.09,133.05,0.063]
[1744620692654,19.07613357,133.06,133.05,0.063]
[1744620692845,19.07613357,133.06,133.03,0.063]
[1744620692846,26.14216157,133.04,133.03,0.063]
[1744620693044,33.16216157,133.04,133.03,0.063]
[1744620693242,18.64964886,133.03,132.98,82.5999]
[1744620693443,0.14216157,133.02,132.96,82.6629]
[1744620693836,6.0141,133.02,132.96,82.6629]
[1744620694947,39.0333,133.04,132.97,0.28432314]
[1744620695140,18.64964886,133.03,132.96,88.6797]
[1744620695341,39.0333,133.04,132.96,88.6797]
[1744620696562,39.0333,133.04,132.97,6.30032314]
[1744620697957,7.02,133.04,132.97,6.30032314]
[1744620698163,7.02,133.04,132.98,0.14216157]
[1744620698458,6.5738,133.07,132.99,0.28432314]
[1744620698641,12.5858,133.07,133.0,6.015]
[1744620699758,7.02,133.08,133.01,19.07613357]
[1744620700661,7.02,133.08,133.03,0.28432314]
[1744620700865,7.02,133.08,133.03,82.88422314]
[1744620701848,12.2822,133.11,133.03,82.88422314]
[1744620702055,14.6734,133.13,133.05,0.28432314]
[1744620702569,8.6642,133.13,133.06,0.14216157]
[1744620702766,7.02,133.13,133.08,6.0114]
[1744620702954,19.4194,133.15,133.08,6.0114]
[1744620704371,19.4194,133.15,133.07,6.29612314]
[1744620705162,18.64964886,133.14,133.07,6.0118]
[1744620705955,18.64964886,133.11,133.06,82.5999]
[1744620706152,6.4703,133.09,133.03,88.6135]
[1744620707261,6.4703,133.09,133.03,82.5999]
[1744620708173,6.0114,133.08,133.03,82.5999]
[1744620709774,18.64964886,133.07,133.03,82.5999]
[1744620710077,6.0114,133.08,133.03,82.5999]
[1744620712573,18.64964886,133.07,133.03,82.5999]
[1744620713467,6.0114,133.08,133.03,82.5999]
[1744620715468,12.4814,133.09,133.03,88.6135]
[1744620715773,6.4703,133.09,133.03,88.6135]
[1744620716481,7.02,133.1,133.04,0.42648471]
[1744620718474,7.02,133.1,133.05,6.0127]
[1744620718974,13.0305,133.1,133.05,6.0127]
[1744620719771,13.0305,133.1,133.04,6.29732314]
[1744620720075,13.0305,133.1,133.03,88.6134]
[1744620720871,7.02,133.1,133.04,0.14216157]
[1744620721381,13.0305,133.1,133.04,0.14216157]
[1744620721590,13.0305,133.1,133.03,88.6134]
[1744620723759,13.0305,133.1,133.05,6.0127]
[1744620723760,7.02,133.1,133.05,6.0127]
[1744620724165,13.0305,133.1,133.05,6.0127]
[1744620725077,1.642,133.12,133.06,0.28432314]
[1744620725376,6.2105,133.13,133.06,82.88422314]
[1744620725971,12.2199,133.13,133.07,6.0118]
[1744620726173,12.2199,133.13,133.06,88.89632314]
[1744620726858,18.64964886,133.12,133.06,82.5999]
[1744620727790,6.01,133.11,133.06,82.5999]
[1744620728492,13.03,133.11,133.06,82.5999]
[1744620729376,18.64964886,133.1,133.06,82.5999]
[1744620729979,6.0109,133.09,133.02,88.6138]
[1744620730685,7.02,133.11,133.03,19.07613357]
[1744620730879,7.02,133.11,133.07,0.28432314]
[1744620731069,7.02,133.11,133.07,82.88422314]
[1744620731268,13.0302,133.11,133.07,82.5999]
[1744620732485,25.24801043,133.1,133.03,82.5999]
[1744620732683,6.4562,133.1,133.03,88.6135]
[1744620732885,13.0302,133.11,133.03,88.6135]
[1744620733281,18.64964886,133.1,133.03,88.6135]
[1744620734279,6.0109,133.09,133.03,82.5999]
[1744620736990,6.0109,133.09,133.03,88.6134]
[1744620737688,6.0109,133.09,133.03,82.5999]
[1744620739492,1.5753,133.08,133.03,82.5999]
[1744620740190,6.0118,133.07,133.03,82.5999]
[1744620741191,7.02,133.08,133.03,88.6135]
[1744620741690,13.0315,133.08,133.03,88.6135]
[1744620743998,13.0315,133.08,133.03,88.6135]
[1744620744970,7.02,133.08,133.03,88.6135]
[1744620745171,7.02,133.08,133.04,0.28432314]
[1744620745370,6.0101,133.11,133.04,0.28432314]
[1744620745570,6.0101,133.11,133.04,82.88422314]
[1744620746290,6.0101,133.11,133.04,88.89702314]
[1744620747673,14.5531,133.12,133.04,88.89702314]
[1744620747876,8.5434,133.12,133.05,0.14216157]
[1744620748166,14.5531,133.12,133.05,0.14216157]
[1744620748773,18.79181043,133.11,133.03,6.0136]
[1744620750091,6.0105,133.1,133.03,6.0136]
[1744620751096,6.125,133.13,133.04,26.07613357]
[1744620752096,12.1342,133.13,133.06,0.28432314]
[1744620752503,6.125,133.13,133.06,0.42648471]
[1744620754407,6.125,133.13,133.07,6.0118]
[1744620754708,6.125,133.13,133.07,88.6117]
[1744620755211,8.6484,133.15,133.08,0.28432314]
[1744620755499,8.6484,133.15,133.08,0.42648471]
[1744620755897,18.79181043,133.14,133.07,82.5999]
[1744620756078,18.79181043,133.11,133.04,82.5999]
[1744620756379,6.0114,133.08,133.04,82.5999]
[1744620758297,6.011,133.09,133.04,82.5999]
[1744620760705,6.011,133.09,133.04,88.613]
[1744620762205,6.011,133.09,133.04,82.5999]
[1744620766881,6.011,133.09,133.04,88.6131]
[1744620769508,6.011,133.09,133.04,82.5999]
[1744620773507,6.011,133.09,133.0,82.5999]
[1744620773508,26.0,133.05,133.0,82.5999]
[1744620773692,18.64964886,133.04,133.0,82.5999]
[1744620774088,1.5459,133.03,133.0,82.5999]
[1744620774310,6.0141,133.02,133.0,82.5999]
[1744620778215,6.0141,133.02,132.97,82.6629]
[1744620778419,18.64964886,133.01,132.97,82.6629]
[1744620779325,6.015,133.0,132.97,82.6629]
[1744620780008,6.015,133.0,132.97,0.063]
[1744620780009,13.015,133.0,132.97,0.063]
[1744620780391,18.64964886,132.99,132.97,0.063]
[1744620780819,13.015,133.0,132.97,0.063]
[1744620783419,8.5459,133.03,132.97,0.063]
[1744620783723,8.5459,133.03,132.97,82.6629]
[1744620784522,6.0143,133.02,132.97,82.6629]
[1744620786614,8.5459,133.03,132.97,88.6792]
[1744620786800,7.0,133.03,132.97,88.6792]
[1744620787006,13.0139,133.03,132.97,88.6792]
[1744620787307,13.0139,133.03,132.97,82.6629]
[1744620788594,13.0139,133.03,132.97,88.679]
[1744620788810,13.0139,133.03,132.97,82.6629]
[1744620790004,13.0139,133.03,132.97,88.6791]
[1744620792224,7.0,133.03,132.97,88.6791]
[1744620792523,7.0,133.07,132.98,19.07613357]
[1744620792723,7.0,133.07,132.98,101.67603357]
[1744620793106,13.012,133.07,133.0,0.28432314]
[1744620794226,13.012,133.07,133.01,6.0145]
[1744620794409,13.012,133.07,133.01,88.6144]
[1744620796106,18.64964886,133.06,133.01,82.5999]
[1744620796413,28.0416,133.07,133.01,82.5999]
[1744620798430,18.64964886,133.06,133.01,82.5999]
[1744620799031,13.012,133.07,133.01,82.5999]
[1744620800733,18.64964886,133.06,133.01,82.5999]
[1744620802137,6.0127,133.05,133.01,82.5999]
[1744620804053,18.64964886,133.04,132.99,82.5999]
[1744620804918,0.14216157,133.03,132.99,82.5999]
[1744620805123,0.14216157,133.03,132.97,0.063]
[1744620805124,18.64964886,133.01,132.97,0.063]
[1744620805532,6.015,133.0,132.97,0.063]
[1744620809442,6.0147,133.01,132.97,0.063]
[1744620809922,24.66434886,133.01,132.97,0.063]
[1744620810128,18.64964886,133.0,132.97,0.063]
[1744620810737,6.0154,132.99,132.97,0.063]
[1744620813946,24.66414886,133.01,132.97,0.063]
[1744620817645,6.0145,133.01,132.97,0.063]
[1744620818854,18.64964886,133.0,132.97,0.063]
[1744620819064,44.64964886,132.98,132.97,0.063]
[1744620819255,44.79181043,132.98,132.97,0.063]
[1744620820654,50.80771043,132.98,132.97,0.063]
[1744620820858,50.80771043,132.98,132.97,0.0001]
[1744620822841,32.0159,132.98,132.97,0.0001]
[1744620825459,50.66554886,132.98,132.97,0.0001]
[1744620827557,57.66554886,132.98,132.97,0.0001]
[1744620833752,57.80771043,132.98,132.97,0.0001]
[1744620835769,57.66554886,132.98,132.97,0.0001]
[1744620839265,13.0151,133.0,132.97,0.0001]
[1744620839857,0.03,133.04,132.97,82.6]
[1744620840063,0.03,133.04,132.99,6.1934]
[1744620840577,6.0432,133.04,132.99,6.1934]
[1744620840870,0.03,133.04,132.99,6.1934]
[1744620842378,0.03,133.04,132.99,12.2087]
[1744620845573,0.03,133.04,132.99,94.8086]
[1744620847080,0.03,133.04,133.0,1.6136]
[1744620847285,0.03,133.04,133.0,84.2135]
[1744620851594,0.03,133.04,133.0,90.2284]
[1744620852274,0.03,133.04,133.01,0.28432314]
[1744620853372,0.03,133.04,133.02,6.0141]
[1744620853579,0.03,133.04,133.03,0.28432314]
[1744620853782,0.03,133.04,133.03,82.88422314]
[1744620855503,0.03,133.04,133.03,88.89782314]
[1744620857890,0.03,133.04,133.03,89.03998471]
[1744620858799,0.03,133.09,133.07,0.42648471]
[1744620858985,0.03,133.09,133.07,82.99638471]
[1744620859973,0.03,133.09,133.08,6.29572314]
[1744620861694,0.03,133.09,133.08,6.43788471]
[1744620861893,0.03,133.09,133.08,25.08753357]
[1744620862305,0.03,133.09,133.08,26.67893357]
[1744620863318,0.03,133.09,133.08,7.88712314]
[1744620863523,0.03,133.09,133.08,6.29572314]
[1744620864585,0.03,133.09,133.07,88.5817]
[1744620864790,0.03,133.09,133.07,82.5699]
[1744620865007,0.03,133.09,133.07,88.5816]
[1744620865430,7.01,133.09,133.05,82.5699]
[1744620865591,18.64964886,133.08,133.01,82.5699]
[1744620865917,18.64964886,133.08,133.01,88.5844]
[1744620866408,7.01,133.09,133.01,88.5844]
[1744620866725,7.01,133.09,133.04,0.28432314]
[1744620866885,7.01,133.09,133.04,82.85422314]
[1744620867716,13.0209,133.09,133.04,82.5699]
[1744620868625,28.0483,133.09,133.04,82.5699]
[1744620870293,18.64964886,133.08,133.01,82.5699]
[1744620870826,6.0118,133.07,133.01,82.5699]
[1744620871192,6.0118,133.07,133.01,88.5843]
[1744620871398,6.0118,133.07,133.01,82.5699]
[1744620871920,21.0414,133.07,133.01,82.5699]
[1744620872223,1.5804,133.06,133.01,82.5699]
[1744620872916,1.5804,133.06,132.98,82.5699]
[1744620872917,12.3025,133.05,132.98,82.5699]
[1744620873113,12.3025,133.05,132.98,88.5857]
[1744620873114,6.98,133.04,132.98,88.5857]
[1744620874122,12.9935,133.04,132.98,88.5857]
[1744620874919,6.98,133.04,132.99,2.06158471]
[1744620876024,6.98,133.04,133.0,6.015]
[1744620878726,13.3477,133.08,133.01,0.42648471]
[1744620878895,13.3477,133.08,133.01,82.99638471]
[1744620879292,0.03,133.09,133.03,0.42648471]
[1744620879493,0.03,133.09,133.05,0.14216157]
[1744620879724,0.03,133.09,133.06,0.28432314]
[1744620880430,0.03,133.09,133.06,6.29622314]
[1744620880590,0.03,133.09,133.07,0.14216157]
[1744620881795,0.03,133.09,133.07,101.36171043]
[1744620882422,0.03,133.09,133.08,0.28432314]
[1744620882599,0.03,133.09,133.08,82.85422314]
[1744620884428,0.03,133.09,133.08,88.86562314]
[1744620886525,0.03,133.1,133.08,82.5699]
[1744620888302,0.03,133.1,133.08,88.5812]
[1744620890932,0.03,133.1,133.09,6.43738471]
[1744620891940,0.03,133.1,133.09,6.29522314]
[1744620893040,0.03,133.1,133.09,6.43738471]
[1744620895339,0.03,133.13,133.1,88.5502]
[1744620895720,0.03,133.13,133.11,0.28432314]
[1744620896020,0.03,133.13,133.1,88.5502]
[1744620896445,0.03,133.13,133.11,0.28432314]
[1744620897238,0.03,133.13,133.12,12.00560612]
[1744620897446,0.03,133.13,133.12,36.66485498]
[1744620898021,0.03,133.13,133.12,6.29392314]
[1744620899442,0.03,133.13,133.12,18.01520612]
[1744620901054,0.03,133.15,133.14,0.14216157]
[1744620901258,0.03,133.16,133.15,82.65206157]
[1744620901425,0.03,133.16,133.15,100.23938298]
[1744620902340,0.03,133.16,133.15,119.17335498]
[1744620902536,0.03,133.17,133.16,19.07613357]
[1744620902742,0.03,133.19,133.18,26.42648471]
[1744620903046,0.03,133.19,133.18,56.65525498]
[1744620903641,0.03,133.19,133.18,62.66215498]
[1744620904245,0.03,133.21,133.2,0.14216157]
[1744620904442,0.03,133.21,133.2,11.72128298]
[1744620904745,0.03,133.21,133.2,30.65525498]
[1744620905542,0.03,133.23,133.21,0.28432314]
[1744620905847,0.03,133.23,133.21,88.79972314]
[1744620907232,0.03,133.23,133.21,82.5099]
[1744620907754,0.03,133.23,133.21,100.52100612]
[1744620908729,0.03,133.23,133.21,88.94188471]
[1744620908932,0.03,133.23,133.21,100.52100612]
[1744620909954,0.03,133.23,133.22,88.76932314]
[1744620910254,0.03,133.23,133.22,100.34844455]
[1744620910452,11.60912141,133.23,133.22,82.4799]
[1744620912670,17.61372141,133.23,133.22,82.4799]
[1744620912839,43.24337027,133.23,133.18,82.4799]
[1744620913039,11.57912141,133.2,133.18,82.4799]
[1744620913769,11.57912141,133.22,133.18,88.4867]
[1744620914055,0.03,133.23,133.21,11.57912141]
[1744620914259,0.03,133.23,133.22,17.58422141]
[1744620914460,0.03,133.23,133.22,17.86854455]
[1744620915857,0.03,133.23,133.22,18.01070612]
[1744620916068,0.03,133.25,133.22,18.01070612]
[1744620916069,0.03,133.25,133.24,82.70422314]
[1744620916364,0.03,133.25,133.24,82.4199]
[1744620917560,0.03,133.25,133.24,88.4241]
[1744620918235,0.03,133.25,133.24,100.00322141]
[1744620919558,0.03,133.25,133.24,82.4199]
[1744620919762,0.03,133.25,133.24,100.28754455]
[1744620920671,0.03,133.25,133.24,93.99902141]
[1744620920849,0.03,133.25,133.24,82.4199]
[1744620925243,0.03,133.25,133.24,94.28334455]
[1744620925440,0.03,133.25,133.24,100.28754455]
[1744620925646,0.03,133.25,133.24,82.4199]
[1744620932758,11.60912141,133.25,133.24,82.4199]
[1744620933652,18.64964886,133.24,133.2,82.4199]
[1744620933866,11.57912141,133.21,133.2,82.4199]
[1744620934274,11.57912141,133.22,133.2,82.4199]
[1744620934460,11.57912141,133.21,133.2,82.4199]
[1744620934659,17.58462141,133.21,133.2,82.4199]
[1744620941880,11.57912141,133.22,133.2,82.4199]
[1744620942593,11.57912141,133.21,133.2,82.4199]
[1744620943981,17.58462141,133.21,133.2,82.4199]
[1744620944376,26.55094886,133.2,133.17,82.4829]
[1744620944683,11.57912141,133.18,133.17,82.4829]
[1744620945556,1.6348,133.17,133.12,82.4199]
[1744620945769,11.57912141,133.13,133.12,82.4199]
[1744620945983,6.0096,133.12,133.09,82.4829]
[1744620946360,17.58842141,133.13,133.09,82.4829]
[1744620947086,11.57912141,133.12,133.09,82.4829]
[1744620947586,17.58902141,133.12,133.09,82.4829]
[1744620948588,11.57912141,133.11,133.09,82.4829]
[1744620948775,11.57912141,133.1,133.09,82.4829]
[1744620949675,17.58962141,133.1,133.09,82.4829]
[1744620952681,6.0105,133.1,133.09,82.4829]
[1744620953695,17.58962141,133.1,133.09,82.4829]
[1744620959895,36.23927027,133.1,133.09,0.063]
[1744620960071,36.38143184,133.1,133.09,0.0001]
[1744620960389,69.62215325,133.1,133.06,0.063]
[1744620960595,11.57912141,133.07,133.06,0.063]
[1744620960970,17.59092141,133.07,133.06,0.063]
[1744620961375,11.57912141,133.09,133.06,0.063]
[1744620961691,11.57912141,133.1,133.06,0.063]
[1744620961878,11.57912141,133.1,133.06,82.4829]
[1744620962399,11.57912141,133.09,133.06,82.4829]
[1744620962595,11.57912141,133.08,133.06,82.4829]
[1744620962895,13.17232141,133.07,133.06,82.4829]
[1744620963091,37.84937027,133.07,133.06,0.0001]
[1744620964493,43.86117027,133.07,133.06,0.0001]
[1744620966996,43.86117027,133.07,133.03,0.063]
[1744620966997,44.64964886,133.04,133.03,0.063]
[1744620967187,63.20877027,133.04,133.03,0.063]
[1744620968293,69.22197027,133.04,133.03,0.063]
[1744620971010,18.64964886,133.03,133.02,0.063]
[1744620971190,41.80789168,133.03,133.02,0.0001]
[1744620972583,30.22877027,133.03,133.02,0.0001]
[1744620973299,47.82149168,133.03,133.02,0.0001]
[1744620973488,47.96365325,133.03,133.02,0.0001]
[1744620975206,36.24237027,133.03,133.02,0.0001]
[1744620978409,0.14216157,133.02,133.01,0.0001]
[1744620978591,6.0159,132.98,132.97,0.0001]
[1744620978995,17.59502141,132.98,132.97,0.0001]
[1744620979496,36.24467027,132.98,132.97,0.0001]
[1744620981212,47.96595325,132.98,132.96,0.0001]
[1744620981401,18.79181043,132.96,132.95,0.0001]
[1744620981723,0.14216157,132.95,132.94,0.0001]
[1744620981912,26.0,132.92,132.9,2.6074396]
[1744620982093,44.55912141,132.92,132.9,2.6074396]
[1744620982285,63.20877027,132.92,132.9,2.6074396]
[1744620982695,37.20877027,132.92,132.9,2.6074396]
[1744620982895,43.22737027,132.92,132.9,2.6074396]
[1744620984304,43.36953184,132.92,132.9,2.6074396]
[1744620984506,11.57912141,132.91,132.9,2.6074396]
[1744620985104,17.59822141,132.91,132.9,2.6074396]
[1744620987805,6.0191,132.91,132.9,85.0273396]
[1744620987998,17.59822141,132.91,132.9,85.0273396]
[1744620990106,12.9983,132.93,132.9,85.0273396]
[1744620990315,6.98,132.93,132.9,96.60646101]
[1744620990633,6.0178,132.94,132.9,96.60646101]
[1744620990929,6.0174,132.95,132.91,11.57912141]
[1744620991105,6.0171,132.96,132.92,11.57912141]
[1744620991428,12.9965,132.97,132.93,11.57912141]
[1744620991745,24.57562141,132.97,132.92,93.99902141]
[1744620993539,11.57912141,132.95,132.92,82.4199]
[1744620994104,6.0177,132.94,132.92,82.4199]
[1744620998018,17.59682141,132.94,132.92,82.4199]
[1744620998735,11.57912141,132.93,132.92,82.4199]
[1744621000429,17.59732141,132.93,132.92,82.4199]
[1744621000936,17.59732141,132.93,132.9,85.0273396]
[1744621001138,11.57912141,132.91,132.9,85.0273396]
[1744621002416,17.59822141,132.91,132.9,85.0273396]
[1744621003539,21.0605,132.95,132.9,85.0273396]
[1744621003843,11.57912141,132.94,132.9,85.0273396]
[1744621004047,11.57912141,132.93,132.9,85.0273396]
[1744621004624,6.0186,132.92,132.9,85.0273396]
[1744621005541,43.6519,132.97,132.91,11.57912141]
[1744621005542,6.98,132.97,132.91,11.57912141]
[1744621005854,6.0168,132.96,132.92,11.57912141]
[1744621006436,12.9965,132.97,132.93,11.57912141]
[1744621006924,24.57562141,132.97,132.92,93.99902141]
[1744621007946,12.9965,132.97,132.93,11.57912141]
[1744621009224,24.57562141,132.97,132.92,93.99902141]
[1744621010049,24.57562141,132.97,132.92,100.01762141]
[1744621010858,24.57562141,132.97,132.92,93.99902141]
[1744621011359,24.57562141,132.97,132.92,82.4199]
[1744621011360,17.59632141,132.95,132.92,82.4199]
[1744621014058,11.57912141,132.93,132.92,82.4199]
[1744621015455,17.59732141,132.93,132.92,82.4199]
[1744621016770,32.64282141,132.93,132.9,85.0273396]
[1744621016970,11.57912141,132.91,132.9,85.0273396]
[1744621019564,17.59822141,132.91,132.9,85.0273396]
[1744621021371,24.57782141,132.92,132.9,85.0273396]
[1744621021568,18.55912141,132.92,132.9,85.0273396]
[1744621021939,6.98,132.92,132.9,85.0273396]
[1744621027151,17.59742141,132.93,132.9,85.0273396]
[1744621027776,6.0177,132.94,132.9,85.0273396]
[1744621027973,17.59682141,132.94,132.9,85.0273396]
[1744621029064,12.9975,132.95,132.9,109.09936101]
[1744621029254,12.9975,132.95,132.9,104.95445706]
[1744621029463,20.43171746,132.95,132.9,104.95445706]
[1744621030870,14.41421746,132.95,132.9,104.95445706]
[1744621031074,13.45031746,132.98,132.93,7.43421746]
[1744621031368,6.0161,132.98,132.94,7.43421746]
[1744621032684,6.0153,133.0,132.95,7.43421746]
[1744621032978,7.43421746,132.99,132.94,13.45181746]
[1744621033150,11.60950105,132.99,132.94,17.62710105]
[1744621033867,11.60950105,132.97,132.93,82.4199]
[1744621034050,11.60950105,132.96,132.93,82.4199]
[1744621034258,11.60950105,132.95,132.93,82.4199]
[1744621036379,17.62680105,132.95,132.93,82.4199]